bitfinex-derivatives/quotes_ETHF0:USTF0_20240901
["timestamp","ask_amount","ask_price","bid_price","bid_amount"]
[1725153089935,9.192763,2504.2,2503.7,0.39941]
[1725153090129,5.199163,2504.2,2503.9,0.3552]
[1725153090331,1.44,2504.0,2503.9,0.3552]
[1725153092337,5.63228718,2504.0,2503.9,0.3552]
[1725153098447,5.63228718,2504.0,2503.9,0.75459]
[1725153098642,5.63228718,2504.0,2503.9,0.3552]
[1725153098953,5.63228718,2504.0,2503.9,0.75459]
[1725153101245,4.19228718,2504.0,2503.9,0.75459]
[1725153102643,4.6478,2504.1,2504.0,0.39938]
[1725153106644,1.44,2504.1,2504.0,0.39938]
[1725153110756,1.7996,2504.2,2504.1,0.39936]
[1725153111052,1.7996,2504.2,2504.1,0.3696]
[1725153112945,1.7996,2504.2,2504.1,0.76896]
[1725153114049,3.2078,2504.4,2504.3,0.39933]
[1725153114258,1.8195,2504.5,2504.3,0.39933]
[1725153114559,6.02127346,2504.5,2504.3,0.39933]
[1725153115754,6.02127346,2504.5,2504.4,0.39931]
[1725153116466,9.62837346,2504.5,2504.2,1.78338575]
[1725153116661,1.44,2504.3,2504.2,0.7381]
[1725153118257,1.44,2504.3,2504.2,1.04528575]
[1725153119161,1.44,2504.3,2504.1,1.81423575]
[1725153119360,0.3614,2504.2,2504.1,2.33687863]
[1725153119559,0.3614,2504.2,2504.1,4.33435456]
[1725153119862,0.3614,2504.2,2504.1,8.32795456]
[1725153120052,0.3614,2504.2,2504.1,7.92860456]
[1725153121063,0.3614,2504.2,2504.1,8.32796456]
[1725153121458,0.3614,2504.2,2504.1,7.92860456]
[1725153121764,0.3614,2504.2,2504.1,3.56540456]
[1725153123265,0.3614,2504.2,2504.1,3.96477445]
[1725153123465,0.3614,2504.2,2504.1,3.56541445]
[1725153123769,1.44,2504.3,2504.1,7.95837445]
[1725153123969,1.8272,2504.3,2504.2,3.04429638]
[1725153124165,1.8272,2504.3,2504.2,1.99748582]
[1725153124470,1.8272,2504.3,2504.2,3.56541445]
[1725153126374,2.22653,2504.3,2504.2,3.56541445]
[1725153126571,1.8272,2504.3,2504.2,3.56541445]
[1725153128271,1.8272,2504.3,2504.2,3.56539708]
[1725153129164,4.6478,2504.5,2504.2,3.56539708]
[1725153129369,4.6478,2504.5,2504.4,1.04724574]
[1725153129771,4.6478,2504.5,2504.4,1.40264574]
[1725153130473,4.6478,2504.5,2504.4,0.3554]
[1725153130975,1.44,2504.5,2504.4,1.40264574]
[1725153131481,1.44,2504.5,2504.4,0.3554]
[1725153132771,1.44,2504.5,2504.4,1.40264574]
[1725153133176,1.44,2504.5,2504.4,1.92332863]
[1725153133372,1.44,2504.5,2504.4,3.92057113]
[1725153133972,3.21377812,2504.7,2504.6,0.39928]
[1725153134178,3.21377812,2504.7,2504.6,14.48299779]
[1725153134375,3.21377812,2504.7,2504.6,18.47706424]
[1725153134570,1.44,2505.1,2504.9,0.39922]
[1725153134878,1.44,2505.1,2505.0,2.13924585]
[1725153135478,1.44,2505.1,2505.0,1.093]
[1725153135670,3.61297042,2505.3,2505.0,1.003]
[1725153135874,1.44,2505.2,2505.0,2.04924585]
[1725153136582,1.44,2505.2,2505.0,1.003]
[1725153137278,4.65379042,2505.3,2505.0,6.04124585]
[1725153137584,4.65379042,2505.3,2505.0,2.44845585]
[1725153138286,0.00599042,2505.3,2505.1,1.04624585]
[1725153138580,3.2078,2505.7,2505.3,0.39916]
[1725153138777,4.6478,2505.7,2505.4,3.40287584]
[1725153138971,4.6478,2505.7,2505.5,0.3547]
[1725153139274,3.2078,2505.7,2505.5,0.75384]
[1725153139471,3.2078,2505.7,2505.5,4.74504]
[1725153139670,4.6478,2505.7,2505.5,0.75384]
[1725153139873,4.6478,2505.7,2505.5,0.3547]
[1725153140077,4.6478,2505.7,2505.5,5.39048622]
[1725153140480,4.6478,2505.7,2505.5,1.39928622]
[1725153140672,4.6478,2505.7,2505.5,0.3547]
[1725153143886,4.6478,2505.7,2505.4,0.7163]
[1725153144780,4.6478,2505.7,2505.5,0.39913]
[1725153144781,3.2078,2505.7,2505.5,0.39913]
[1725153145680,3.2078,2505.7,2505.6,0.39912]
[1725153145882,1.44599042,2505.9,2505.6,0.39912]
[1725153147175,1.44599042,2505.9,2505.5,0.39913]
[1725153147474,1.84507042,2505.9,2505.5,0.39913]
[1725153147671,0.3903,2505.8,2505.5,0.39913]
[1725153148186,1.44599042,2505.9,2505.6,0.39912]
[1725153149384,0.00599042,2505.9,2505.4,0.7163]
[1725153149582,1.44599042,2505.9,2505.4,0.7163]
[1725153150087,1.83199042,2505.9,2505.6,0.39911]
[1725153151080,1.44599042,2505.9,2505.7,0.3991]
[1725153151280,0.00599042,2505.9,2505.8,0.7804]
[1725153153788,0.00599042,2505.9,2505.4,7.3558]
[1725153153789,1.44599042,2505.9,2505.4,7.3558]
[1725153154096,1.44599042,2505.9,2505.4,7.75494]
[1725153154097,2.61717042,2505.9,2505.4,7.75494]
[1725153154297,0.3894,2505.8,2505.4,7.75494]
[1725153154692,0.3894,2505.8,2505.5,0.39914]
[1725153155380,0.78849,2505.8,2505.4,7.75495]
[1725153156495,1.44,2505.7,2505.4,7.3558]
[1725153156796,1.83914,2505.5,2505.4,7.3558]
[1725153157591,1.83914,2505.5,2505.4,3.2078]
[1725153157791,1.44,2505.5,2505.4,3.2078]
[1725153159891,1.44,2505.5,2505.1,0.3992]
[1725153160087,1.44,2505.5,2505.2,3.2078]
[1725153161897,1.44,2505.5,2505.1,0.39919]
[1725153163497,0.3581,2505.4,2505.1,0.39919]
[1725153164199,0.3581,2505.4,2505.0,5.64921]
[1725153164502,0.39918,2505.3,2505.0,1.102]
[1725153168005,0.7308,2505.4,2505.0,1.102]
[1725153168006,1.12996,2505.4,2505.0,1.102]
[1725153168203,0.39917,2505.3,2505.0,1.102]
[1725153169103,0.39919,2505.2,2505.0,1.102]
[1725153169706,0.7308,2505.4,2505.0,1.102]
[1725153169707,0.39918,2505.3,2505.0,1.102]
[1725153170610,0.39919,2505.2,2505.0,1.102]
[1725153172910,3.9386,2505.4,2505.0,1.102]
[1725153172911,0.39918,2505.3,2505.0,1.102]
[1725153174509,3.9386,2505.4,2505.0,1.102]
[1725153174907,0.39918,2505.3,2505.0,1.102]
[1725153177505,0.75726,2505.4,2505.0,2.14658622]
[1725153177712,0.39917,2505.3,2505.0,2.14658622]
[1725153178510,0.39917,2505.3,2505.1,1.04458622]
[1725153179709,4.6478,2505.5,2505.1,1.04458622]
[1725153179913,1.83915,2505.5,2505.1,1.44377622]
[1725153180512,1.83915,2505.5,2505.2,1.04458622]
[1725153180911,1.83915,2505.5,2505.3,0.3787]
[1725153181110,1.83915,2505.5,2505.4,0.7481]
[1725153181417,1.44,2505.5,2505.4,0.7481]
[1725153181606,5.83034,2505.5,2505.4,0.7481]
[1725153181915,5.4312,2505.5,2505.4,0.7481]
[1725153182107,1.44,2505.5,2505.4,0.7481]
[1725153183413,1.83914,2505.5,2505.4,0.7481]
[1725153184414,1.44,2505.5,2505.4,0.7481]
[1725153187509,1.83914,2505.5,2505.4,0.7481]
[1725153187721,0.39916,2505.4,2505.2,1.04458622]
[1725153187916,0.77986,2505.4,2505.3,0.7321]
[1725153189312,0.39917,2505.3,2505.2,1.04458622]
[1725153189616,0.39918,2505.2,2505.1,1.04458622]
[1725153189812,0.3992,2505.1,2505.0,1.04458622]
[1725153190016,0.39922,2505.0,2504.9,1.04458622]
[1725153191411,2.20581,2505.1,2504.9,1.04458622]
[1725153191611,0.76581,2505.1,2504.9,1.04458622]
[1725153191814,0.76581,2505.1,2505.0,0.371]
[1725153192026,1.44,2505.2,2505.0,0.371]
[1725153192217,1.44,2505.2,2505.1,0.7456]
[1725153194717,5.04696,2505.4,2505.1,1.79018622]
[1725153194917,5.04696,2505.4,2505.1,0.7456]
[1725153195530,5.04696,2505.4,2505.1,1.79018622]
[1725153195827,3.573,2505.4,2505.1,2.18937622]
[1725153196222,0.39914,2505.5,2505.1,2.18937622]
[1725153196421,0.76434,2505.5,2505.1,2.18937622]
[1725153196725,4.23961,2505.4,2505.1,2.18937622]
[1725153197819,4.63876,2505.4,2505.1,1.79018622]
[1725153198226,6.07876,2505.4,2505.1,1.79018622]
[1725153198426,6.44346,2505.4,2505.1,1.79018622]
[1725153199933,6.04431,2505.4,2505.1,1.79018622]
[1725153200433,6.04431,2505.4,2505.2,1.04458622]
[1725153200932,6.04431,2505.4,2505.3,0.3812]
[1725153202820,5.67961,2505.4,2505.3,0.3812]
[1725153203035,5.67961,2505.4,2505.3,1.42578622]
[1725153204130,4.23961,2505.4,2505.3,1.42578622]
[1725153204333,2.04307755,2505.6,2505.3,3.94467364]
[1725153204630,2.39607755,2505.6,2505.4,3.04329109]
[1725153204827,2.39607755,2505.6,2505.4,1.04673272]
[1725153206031,0.39914,2505.5,2505.4,1.04673272]
[1725153206229,0.55694755,2505.6,2505.4,1.04673272]
[1725153206436,2.39606755,2505.6,2505.4,1.04673272]
[1725153206832,1.99694755,2505.6,2505.4,1.04673272]
[1725153207227,2.39606755,2505.6,2505.4,1.04673272]
[1725153210432,1.99694755,2505.6,2505.4,1.04673272]
[1725153210633,1.793,2505.6,2505.5,0.7439]
[1725153214641,1.44,2505.6,2505.5,1.79063272]
[1725153214846,1.44,2505.6,2505.5,0.7439]
[1725153215237,1.44,2505.6,2505.5,1.79063272]
[1725153215437,1.44,2505.6,2505.5,0.7439]
[1725153216535,1.63615085,2505.6,2505.5,0.7439]
[1725153217035,2.03527085,2505.6,2505.5,0.3773]
[1725153217238,2.42257085,2505.6,2505.5,0.3773]
[1725153218831,2.42257085,2505.6,2505.3,1.04673272]
[1725153218832,0.99785,2505.5,2505.3,1.04673272]
[1725153219043,0.39917,2505.3,2505.2,1.04673272]
[1725153219235,0.39918,2505.2,2505.1,1.04691186]
[1725153219435,0.3992,2505.1,2505.0,5.19491186]
[1725153219637,0.7712,2505.1,2505.0,5.19491186]
[1725153222436,0.7712,2505.1,2504.9,1.41101186]
[1725153222638,5.83122,2505.0,2504.9,1.04691186]
[1725153222839,6.19812,2505.0,2504.9,1.04691186]
[1725153223044,0.39923,2504.9,2504.8,1.05290228]
[1725153223440,4.86352734,2504.9,2504.8,1.05290228]
[1725153223745,4.86352734,2504.9,2504.6,10.19709171]
[1725153223746,0.39926,2504.7,2504.6,1.04691186]
[1725153224046,0.3993,2504.5,2504.4,1.04691186]
[1725153224250,0.3993,2504.5,2504.3,1.43501186]
[1725153224552,4.50567083,2504.5,2504.3,1.43501186]
[1725153224754,4.90497083,2504.5,2504.3,1.43501186]
[1725153225250,0.39931,2504.4,2504.3,0.3881]
[1725153225837,4.90498083,2504.5,2504.3,0.3881]
[1725153226040,4.50567083,2504.5,2504.3,0.3881]
[1725153226349,4.90498083,2504.5,2504.3,0.3881]
[1725153226850,5.28468083,2504.5,2504.3,0.3881]
[1725153228153,0.39931,2504.4,2504.3,0.3881]
[1725153229557,8.49247083,2504.5,2504.3,0.3881]
[1725153229748,0.39931,2504.4,2504.3,0.3881]
[1725153230753,1.44,2504.4,2504.1,0.00599042]
[1725153230950,1.83934,2504.2,2504.1,0.00599042]
[1725153231245,9.85728023,2504.2,2504.1,0.00599042]
[1725153231449,13.85088023,2504.2,2504.1,0.00599042]
[1725153235754,9.85728023,2504.2,2504.1,0.00599042]
[1725153236452,13.85088023,2504.2,2504.1,0.00599042]
[1725153238650,9.85728023,2504.2,2504.1,0.00599042]
[1725153239153,13.85088023,2504.2,2504.1,0.00599042]
[1725153246549,9.85728023,2504.2,2504.1,0.00599042]
[1725153246856,13.85088023,2504.2,2504.1,0.00599042]
[1725153247662,9.85728023,2504.2,2504.1,0.00599042]
[1725153250566,6.64948023,2504.2,2504.1,0.00599042]
[1725153250960,9.85728023,2504.2,2504.1,0.00599042]
[1725153252560,8.01794023,2504.2,2504.1,0.00599042]
[1725153253357,8.41728023,2504.2,2504.1,0.00599042]
[1725153255668,5.20948023,2504.2,2504.1,0.00599042]
[1725153255852,8.41728023,2504.2,2504.1,0.00599042]
[1725153256464,12.41088023,2504.2,2504.1,0.00599042]
[1725153257166,8.41728023,2504.2,2504.1,0.00599042]
[1725153258064,8.01794023,2504.2,2504.1,0.00599042]
[1725153258662,8.01794023,2504.2,2504.1,4.39895042]
[1725153258663,4.02112047,2504.2,2504.1,4.39895042]
[1725153258971,0.00599042,2504.6,2504.3,0.39931]
[1725153259373,0.20200539,2504.6,2504.4,0.369]
[1725153259561,0.20200539,2504.6,2504.5,0.3688]
[1725153260074,0.60128539,2504.6,2504.5,0.3688]
[1725153261855,0.40527042,2504.6,2504.5,0.3688]
[1725153262261,0.00599042,2504.6,2504.5,0.3688]
[1725153265474,0.40527042,2504.6,2504.5,0.3688]
[1725153267366,0.00599042,2504.6,2504.5,0.3688]
[1725153272879,0.40527042,2504.6,2504.5,0.3688]
[1725153273570,0.77217042,2504.6,2504.5,0.3688]
[1725153274172,5.09294161,2504.6,2504.4,0.369]
[1725153274368,0.3905,2504.5,2504.4,0.369]
[1725153274574,2.2298,2504.5,2504.4,0.369]
[1725153274778,9.19316409,2504.5,2504.4,0.369]
[1725153275274,9.59246409,2504.5,2504.4,0.369]
[1725153276978,6.38466409,2504.5,2504.4,0.369]
[1725153277177,9.59246409,2504.5,2504.4,0.369]
[1725153278080,6.38466409,2504.5,2504.4,0.369]
[1725153278279,9.59246409,2504.5,2504.4,0.369]
[1725153278982,6.38466409,2504.5,2504.4,0.369]
[1725153279182,9.59246409,2504.5,2504.4,0.369]
[1725153280084,6.38466409,2504.5,2504.4,0.369]
[1725153282081,5.99416409,2504.5,2504.4,0.369]
[1725153284794,5.59486409,2504.5,2504.4,0.369]
[1725153285185,5.96626409,2504.5,2504.4,0.369]
[1725153285488,6.36556409,2504.5,2504.4,0.369]
[1725153286482,5.96626409,2504.5,2504.4,0.369]
[1725153289688,6.36556409,2504.5,2504.4,0.369]
[1725153289888,5.96626409,2504.5,2504.4,0.369]
[1725153290791,6.36556409,2504.5,2504.4,0.369]
[1725153290991,5.96626409,2504.5,2504.4,0.369]
[1725153291993,6.36556409,2504.5,2504.4,0.369]
[1725153295291,0.39933,2504.3,2504.2,1.04691186]
[1725153295500,5.04713,2504.3,2504.2,1.04691186]
[1725153295801,0.39934,2504.2,2504.1,0.00599042]
[1725153296002,1.50464,2504.2,2504.1,0.00599042]
[1725153296212,6.10756914,2504.2,2504.1,0.00599042]
[1725153300813,5.00226914,2504.2,2504.1,0.00599042]
[1725153301003,4.60292914,2504.2,2504.1,0.00599042]
[1725153301306,5.04714,2504.3,2504.1,0.00599042]
[1725153301507,4.6478,2504.3,2504.1,0.00599042]
[1725153301710,4.6478,2504.3,2504.1,1.05290228]
[1725153301711,3.2078,2504.3,2504.1,1.05290228]
[1725153302005,3.2078,2504.3,2504.2,0.3592]
[1725153302203,3.2078,2504.3,2504.2,0.7339]
[1725153303604,3.60712,2504.4,2504.2,0.7339]
[1725153304121,4.46553722,2504.3,2504.2,0.7339]
[1725153304604,4.46553722,2504.3,2504.1,1.05290228]
[1725153304605,5.90553722,2504.3,2504.1,1.05290228]
[1725153304809,0.76884,2504.2,2504.1,0.00599042]
[1725153305000,1.14844,2504.2,2504.1,0.00599042]
[1725153305206,5.56646304,2504.2,2504.1,0.00599042]
[1725153306618,5.56646304,2504.2,2502.9,1.04709323]
[1725153306619,0.39954,2503.0,2502.9,1.04709323]
[1725153306802,4.6478,2503.0,2502.7,1.04709323]
[1725153307002,1.44,2502.8,2502.6,1.04709323]
[1725153307209,1.44,2502.8,2502.7,2.61379119]
[1725153307716,3.05907354,2502.8,2502.7,2.61379119]
[1725153308205,1.61907354,2502.8,2502.7,2.61379119]
[1725153309406,3.21379042,2503.0,2502.7,2.61379119]
[1725153309607,3.21379042,2503.0,2502.5,0.39962]
[1725153309914,3.21379042,2503.0,2502.9,2.61379119]
[1725153312206,3.61333042,2503.0,2502.9,2.61379119]
[1725153312402,3.21379042,2503.0,2502.9,2.61379119]
[1725153317020,0.00599042,2503.0,2502.9,2.61379119]
[1725153317218,3.21379042,2503.0,2502.9,2.61379119]
[1725153320636,3.21379042,2503.0,2502.9,3.38004119]
[1725153320825,0.78,2504.3,2502.9,9.5745]
[1725153320826,3.2078,2503.6,2502.9,9.5745]
[1725153321032,3.84943,2503.7,2502.9,3.5745]
[1725153321229,3.84943,2503.7,2503.6,2.61379119]
[1725153321230,7.61729569,2503.7,2503.6,2.61379119]
[1725153321433,3.45,2503.7,2503.6,2.61379119]
[1725153321639,3.84942,2503.7,2503.6,2.61379119]
[1725153323838,8.2797108,2503.7,2503.6,2.61379119]
[1725153325031,7.8802908,2503.7,2503.6,2.61379119]
[1725153325745,3.45,2503.7,2503.6,2.61379119]
[1725153326936,0.00599042,2503.9,2503.6,2.61379119]
[1725153327239,0.00599042,2503.9,2503.8,2.61379119]
[1725153329441,0.00599042,2503.9,2503.8,3.01320119]
[1725153330345,0.00599042,2503.9,2503.8,9.01320119]
[1725153330943,3.45,2504.3,2504.1,0.39936]
[1725153331142,6.6578,2504.5,2504.2,3.33159119]
[1725153331352,6.6578,2504.5,2504.4,2.61379119]
[1725153331743,3.2078,2504.5,2504.4,2.61379119]
[1725153332242,3.45599042,2504.7,2504.4,2.61379119]
[1725153332442,3.45599042,2504.7,2504.6,2.61379119]
[1725153332747,0.00599042,2504.7,2504.6,2.61379119]
[1725153334639,0.00599042,2504.7,2504.6,3.01307119]
[1725153335147,0.00599042,2504.7,2504.6,2.61379119]
[1725153337742,0.00599042,2504.7,2504.6,3.01307119]
[1725153344346,0.00599042,2504.7,2504.6,9.01307119]
[1725153344749,3.5668,2505.4,2505.0,0.39922]
[1725153344957,3.5668,2505.4,2505.3,2.61379119]
[1725153345159,3.7645928,2505.4,2505.3,2.61379119]
[1725153345346,8.67513916,2505.4,2505.3,2.61379119]
[1725153346143,8.27598916,2505.4,2505.3,2.61379119]
[1725153346941,3.7645928,2505.4,2505.3,2.61379119]
[1725153347352,3.5668,2505.4,2505.3,2.61379119]
[1725153351954,0.359,2505.4,2505.3,2.61379119]
[1725153355162,4.98993,2505.3,2504.2,0.00599042]
[1725153355367,0.99841,2504.1,2502.7,3.2078]
[1725153355665,3.45,2503.4,2502.8,0.19541639]
[1725153355856,3.2078,2503.5,2503.0,0.39953]
[1725153356162,3.2078,2503.5,2503.0,3.39057119]
[1725153356461,3.2078,2503.5,2503.0,3.39656161]
[1725153356462,3.45,2503.4,2503.0,3.39656161]
[1725153359157,3.84947,2503.4,2503.0,3.39656161]
[1725153359361,3.2078,2503.1,2503.0,3.39656161]
[1725153361259,3.2078,2503.1,2503.0,0.00599042]
[1725153361260,3.60732,2503.1,2503.0,0.00599042]
[1725153361469,3.2078,2503.1,2503.0,0.00599042]
[1725153365871,0.39951,2503.2,2503.0,0.00599042]
[1725153366272,7.40500174,2503.1,2503.0,0.00599042]
[1725153368464,7.40500174,2503.1,2501.9,4.148]
[1725153368465,20.85020174,2503.1,2501.9,4.148]
[1725153368668,3.2078,2502.1,2501.9,3.39057119]
[1725153370265,11.87203958,2502.0,2500.6,2.60541914]
[1725153370465,11.87203958,2502.0,2501.1,0.39982]
[1725153370466,3.2078,2501.4,2501.1,0.39982]
[1725153370667,6.6578,2501.8,2501.1,0.75002119]
[1725153370865,6.6578,2501.8,2501.1,1.14986119]
[1725153371165,3.45,2501.5,2501.1,0.75002119]
[1725153371569,3.2078,2501.4,2501.1,0.75002119]
[1725153372467,0.00599042,2501.6,2501.1,1.14985119]
[1725153372659,0.00599042,2501.6,2500.8,3.2078]
[1725153372866,3.45,2500.9,2500.0,0.2]
[1725153373060,0.4,2500.1,2500.0,0.2]
[1725153373275,3.45,2500.2,2498.7,0.35751156]
[1725153373569,3.45,2498.8,2498.0,3.2078]
[1725153373769,3.2078,2499.1,2498.3,3.2078]
[1725153373972,0.77515915,2498.7,2498.2,0.40029]
[1725153374276,0.4002,2498.9,2498.2,0.75002119]
[1725153374466,3.93424844,2499.0,2498.2,0.75002119]
[1725153374467,6.6578,2498.8,2498.2,0.75002119]
[1725153374776,10.87198226,2498.8,2497.8,0.40037]
[1725153374968,3.2078,2498.5,2497.8,0.75002119]
[1725153375163,4.33409147,2498.7,2498.4,0.40027]
[1725153375368,4.33409147,2498.7,2498.4,0.40026]
[1725153375671,0.00600384,2498.7,2498.4,0.75002119]
[1725153375873,0.00600384,2498.7,2498.6,0.40024]
[1725153376070,0.00600384,2498.7,2498.4,1.15029119]
[1725153376272,0.00600384,2498.7,2498.4,0.75002119]
[1725153376465,3.2078,2499.7,2498.6,3.2078]
[1725153376673,3.2078,2500.1,2499.3,4.61]
[1725153376865,3.2078,2500.1,2499.4,0.3641]
[1725153377075,3.2078,2500.1,2499.4,1.11412119]
[1725153377665,4.31111553,2500.0,2499.5,0.00600384]
[1725153378076,0.00600384,2500.0,2499.5,4.75682503]
[1725153378271,0.00600384,2500.0,2499.7,0.40006]
[1725153378667,4.44168046,2499.9,2499.7,0.75002119]
[1725153378871,4.44168046,2499.9,2499.7,1.15007119]
[1725153379070,4.44168046,2499.9,2499.8,0.40005]
[1725153379363,0.00600384,2500.0,2499.9,0.40003]
[1725153379772,0.00600384,2500.0,2499.9,5.15005119]
[1725153380281,3.2078,2500.5,2499.9,4.75002119]
[1725153380471,3.2078,2500.5,2500.2,0.39998]
[1725153380970,3.2078,2500.5,2500.2,1.15000119]
[1725153381975,3.2078,2500.5,2500.4,0.39995]
[1725153382274,0.00600384,2500.6,2500.5,0.39994]
[1725153382673,0.00600384,2500.6,2500.4,0.39994]
[1725153382969,0.00600384,2500.6,2500.5,0.39994]
[1725153383374,0.00600384,2500.6,2500.5,1.14996119]
[1725153385479,3.2078,2501.3,2501.2,0.39982]
[1725153385975,3.2078,2501.3,2501.2,1.14984119]
[1725153386273,3.2078,2501.3,2501.0,0.00600384]
[1725153386577,7.49030956,2501.3,2501.0,0.00600384]
[1725153386776,7.49030956,2501.3,2501.0,0.75602503]
[1725153386973,7.49030956,2501.3,2501.0,0.00600384]
[1725153388179,7.49030956,2501.3,2501.0,0.40585384]
[1725153388379,7.49030956,2501.3,2501.1,0.39984]
[1725153388674,7.49030956,2501.3,2501.1,1.14986119]
[1725153388872,7.49030956,2501.3,2501.1,0.75002119]
[1725153389072,7.49030956,2501.3,2501.0,0.00600384]
[1725153389873,7.49030956,2501.3,2501.0,0.40585384]
[1725153390370,0.00600384,2501.5,2501.0,0.75602503]
[1725153390577,0.00600384,2501.5,2501.1,0.7399]
[1725153390781,0.00600384,2501.5,2501.3,0.3998]
[1725153390980,4.59943713,2501.4,2501.1,1.48992119]
[1725153391274,4.59943713,2501.4,2501.3,0.39981]
[1725153391682,8.59703713,2501.4,2501.1,0.75753]
[1725153391878,4.59943713,2501.4,2501.2,0.39982]
[1725153392284,4.59943713,2501.4,2501.2,0.30982]
[1725153393269,4.59943713,2501.4,2501.3,0.39981]
[1725153394482,4.59943713,2501.4,2501.1,0.75752]
[1725153394680,4.59943713,2501.4,2501.1,1.50754119]
[1725153395076,4.59943713,2501.4,2501.2,0.39982]
[1725153395576,4.59943713,2501.4,2501.2,1.14984119]
[1725153396379,4.59943713,2501.4,2501.2,0.39982]
[1725153397278,4.59943713,2501.4,2501.0,0.00600384]
[1725153397481,4.59943713,2501.4,2501.3,0.39981]
[1725153399284,4.59943713,2501.4,2501.3,1.14983119]
[1725153399489,0.00600384,2501.5,2501.4,0.39979]
[1725153399980,3.2078,2501.9,2501.4,5.48242119]
[1725153400182,0.39975,2501.7,2501.3,3.2078]
[1725153400384,4.46001272,2501.5,2501.3,3.2078]
[1725153400574,3.2078,2501.9,2501.3,3.2078]
[1725153400575,4.80422693,2501.6,2501.3,3.2078]
[1725153400777,4.80422693,2501.6,2501.2,4.148]
[1725153400778,3.60756,2501.6,2501.2,4.148]
[1725153401080,4.51278308,2501.4,2501.2,5.29784119]
[1725153401287,4.40446693,2501.5,2501.2,5.29784119]
[1725153401486,4.51278308,2501.3,2501.2,5.29784119]
[1725153401792,4.51278308,2501.5,2501.3,0.39981]
[1725153402093,7.2054,2501.6,2501.0,0.00600384]
[1725153402281,4.68403762,2501.5,2501.1,0.39983]
[1725153402481,4.68403762,2501.5,2501.0,0.75602503]
[1725153403083,4.68403762,2501.5,2501.0,1.15587503]
[1725153403588,4.28425762,2501.5,2501.0,0.75602503]
[1725153403778,4.28425762,2501.5,2501.3,0.3998]
[1725153403982,4.28425762,2501.5,2501.2,0.39981]
[1725153404184,8.28185762,2501.5,2501.2,0.39981]
[1725153405786,8.28185762,2501.5,2501.3,0.3998]
[1725153405989,4.28425762,2501.5,2501.3,0.3998]
[1725153406183,3.9976,2501.4,2501.3,0.3998]
[1725153406385,3.9976,2501.4,2501.2,0.39982]
[1725153406589,4.28630131,2501.4,2501.1,0.39983]
[1725153407098,4.28630131,2501.4,2501.2,0.39982]
[1725153407489,3.9976,2501.4,2501.2,0.39982]
[1725153407889,4.39729347,2501.3,2501.1,0.39983]
[1725153408391,4.39729347,2501.3,2501.2,0.39982]
[1725153408589,4.51482182,2501.4,2501.2,0.39982]
[1725153408893,4.41515671,2501.5,2501.2,0.39982]
[1725153409094,7.60517,2501.6,2501.2,0.39982]
[1725153409390,4.6190446,2501.5,2501.2,0.39982]
[1725153409786,8.6166446,2501.5,2501.2,0.39982]
[1725153410991,9.0164246,2501.5,2501.2,0.39982]
[1725153411295,8.6166446,2501.5,2501.2,0.39982]
[1725153411495,9.0164246,2501.5,2501.1,0.39983]
[1725153411696,5.0188246,2501.5,2501.2,0.39982]
[1725153411887,4.6190446,2501.5,2501.2,0.39982]
[1725153412088,8.6166446,2501.5,2501.2,0.39982]
[1725153414190,11.8244446,2501.5,2501.2,0.39982]
[1725153414494,11.8244446,2501.5,2501.3,0.39981]
[1725153414802,7.8268446,2501.5,2501.3,0.39981]
[1725153414990,3.9976,2501.4,2501.3,0.39981]
[1725153415391,8.20653891,2501.4,2501.3,0.39981]
[1725153416708,8.20653891,2501.4,2501.1,0.39983]
[1725153416897,4.20893891,2501.4,2501.1,0.39983]
[1725153417597,4.20893891,2501.4,2501.2,0.39982]
[1725153418103,8.20653891,2501.4,2501.2,0.39982]
[1725153419100,0.39982,2501.3,2501.0,0.40584384]
[1725153419398,4.25038106,2501.2,2501.1,0.39983]
[1725153419795,4.25038106,2501.3,2501.1,0.39983]
[1725153420200,0.39979,2501.4,2501.1,0.39983]
[1725153420603,4.51955834,2501.2,2501.1,0.39983]
[1725153420904,4.98496029,2501.4,2501.1,0.39983]
[1725153421305,0.00600384,2501.7,2501.0,0.00600384]
[1725153421306,3.2078,2501.2,2501.0,0.00600384]
[1725153421506,0.39984,2501.1,2501.0,0.00600384]
[1725153421804,4.47281189,2501.1,2501.0,0.00600384]
[1725153422001,10.47281189,2501.1,2501.0,0.00600384]
[1725153422200,10.67690454,2501.1,2501.0,0.00600384]
[1725153424412,0.39992,2500.6,2500.5,1.04709323]
[1725153424713,0.39992,2500.6,2500.4,1.43489323]
[1725153424714,7.98488049,2500.6,2500.4,1.43489323]
[1725153425097,0.39995,2500.5,2500.3,1.04709323]
[1725153425401,4.52569473,2500.4,2500.3,0.39996]
[1725153425610,4.52569473,2500.4,2500.3,0.98823989]
[1725153425908,4.92563473,2500.5,2500.3,0.58827989]
[1725153426103,4.92563473,2500.5,2500.2,1.44707323]
[1725153426104,0.39994,2500.5,2500.2,1.44707323]
[1725153426301,4.23948165,2500.4,2500.2,1.44707323]
[1725153426704,3.2078,2500.3,2500.1,1.05309707]
[1725153426907,3.2078,2500.3,2500.1,0.00600384]
[1725153427104,0.30724664,2500.2,2500.1,0.40600384]
[1725153427299,0.30724664,2500.2,2500.1,4.79191559]
[1725153427603,4.23948165,2500.3,2500.2,0.39998]
[1725153427811,0.00600384,2500.4,2500.2,2.78451004]
[1725153428105,4.36644171,2500.3,2500.2,1.79623913]
[1725153428408,4.36644171,2500.3,2500.2,0.75002119]
[1725153428804,4.36644171,2500.3,2500.1,1.05222178]
[1725153429104,4.36644171,2500.3,2500.1,0.00600384]
[1725153429105,4.39998,2500.2,2500.1,0.00600384]
[1725153429506,3.86531199,2500.2,2500.1,0.00600384]
[1725153429900,4.26529199,2500.2,2500.1,0.00600384]
[1725153430101,14.26529199,2500.2,2500.1,0.00600384]
[1725153433620,13.86531199,2500.2,2500.1,0.00600384]
[1725153434111,14.26529199,2500.2,2500.1,0.00600384]
[1725153436804,17.47309199,2500.2,2500.1,0.00600384]
[1725153437819,14.26529199,2500.2,2500.1,0.00600384]
[1725153438314,11.47309199,2500.2,2500.1,0.00600384]
[1725153438518,3.86531199,2500.2,2500.1,5.15602503]
[1725153438718,3.27691199,2500.2,2500.1,5.15602503]